Cogmind - Beta 15 @@@ ROGUE MODE // 2025.06.11 @ 13:33:12 Player: the Result: Self-destructed Performance ------------- Evolutions (1) 500 Regions Visited (2) 400 Robots Destroyed (49) 245 Value Destroyed (714) 714 Prototype IDs (0) 0 Alien Tech Used (0) 0 Bonus (0) 0 TOTAL SCORE: 1859 Bonus ------- None Cogmind --------- Core Integrity 302/400 Matter 280/300 Energy 396/500 System Corruption 0% Temperature Warm (140) Movement Rolling (125) Ox3 Location -9/Materials Parts ------- > --- POWER (1) -------- Ion Engine > --- PROPULSION (2) --- Wheel > --- UTILITY (4) ------ Large Storage Unit High-capacity Battery Structural Scanner Seismic Detector > --- WEAPON (2) ------- Heavy EM Pulse Gun > --- INVENTORY (15) --- Wheel Wheel Wheel Structural Scanner Seismic Detector Small Laser Heavy Assault Rifle Heavy Assault Rifle Mining Laser Plasma Cutter Peak State ------------ > --- POWER ------------ Light Nuclear Core > --- PROPULSION ------- Wheel Wheel > --- UTILITY ---------- Large Storage Unit Seismic Detector > --- WEAPON ----------- Heavy EM Pulse Gun Heavy EM Pulse Gun > --- INVENTORY -------- Ion Engine Ion Engine Wheel Heat Sink High-capacity Battery Structural Scanner Seismic Detector Seismic Detector Targeting Computer Heavy EM Pulse Gun Heavy EM Pulse Gun Heavy Assault Rifle Heavy Assault Rifle Mining Laser Plasma Cutter [Rating: 13] Favorites ----------- Power Light Nuclear Core Engine Ion Engine Power Core Light Nuclear Core Propulsion Wheel Wheel Wheel Utility Large Storage Unit Device Seismic Detector Storage Large Storage Unit Processor Transport Network Coupler Weapon Small Laser Energy Gun Small Laser Energy Cannon Beam Cannon Special Weapon Mining Laser Build | -11 -10 -9 ------- Run | Yrd Mat Mat Slots Evolved 2 | . . 2 Power . | . . . Propulsion . | . . . Utility 2 | . . 2 Weapon . | . . . Parts Attached 41 | 8 27 6 Power 5 | 1 3 1 Engine 4 | 1 2 1 Core 1 | . 1 . Reactor . | . . . Propulsion 12 | 3 7 2 Treads . | . . . Leg . | . . . Wheel 12 | 3 7 2 Hover . | . . . Flight . | . . . Utility 9 | 2 6 1 Device 4 | 1 3 . Storage 4 | 1 2 1 Processor 1 | . 1 . Hackware . | . . . Protection . | . . . Artifact . | . . . Weapon 15 | 2 11 2 Energy Gun 12 | 2 8 2 Energy Cannon 2 | . 2 . Ballistic Gun . | . . . Ballistic Cannon . | . . . Launcher . | . . . Special Weapon 1 | . 1 . Impact Weapon . | . . . Slashing Weapon . | . . . Piercing Weapon . | . . . Special Melee Weapon . | . . . Unidentified Prototypes . | . . . Parts Lost 6 | . 1 5 Power 1 | . . 1 Propulsion 3 | . . 3 Utility . | . . . Weapon 2 | . 1 1 Highest Loss Streak 2 | . 1 2 To Critical Strikes 1 | . . 1 Average Backups 12 | 3 12 12 Power 1 | . 1 . Propulsion 1 | 1 1 2 Utility 4 | . 4 3 Weapon 4 | 1 4 5 Tool/Special . | . . . Unused Backups 14 | 1 7 6 Power . | . . . Propulsion 4 | 1 2 1 Utility 3 | . 2 1 Weapon 6 | . 3 3 Tool/Special 1 | . . 1 Average Slot Usage (%) 98 | . 99 91 Engine 5 | . 6 2 Core 7 | . 7 7 Wheel 26 | . 28 20 Device 16 | . 14 26 Storage 13 | . 14 12 Energy Gun 20 | . 24 2 Energy Cannon 5 | . 2 16 Peak Build Rating 13 | 7 13 12 Average Rating 9 | 5 9 10 On Entrance 6 | . 7 11 Naked Turns . | . . . Heaviest Build 37 | 11 32 37 Greatest Support 32 | 26 32 20 Greatest Overweight (x) 3 | . 1 3 Average Overweight (x) . | . . 1 Largest Inventory Capacity 15 | 8 15 15 Average Capacity 13 | 7 13 15 Most Carried 15 | 8 15 14 Average Carried 12 | 4 12 12 Final Capacity 15 | 8 15 15 Final Carried 15 | 7 15 10 Class Distribution -------------------- 69% | Mutant 30% | Scavenger-Mutant Dominant Class ---------------- Mutant | -10/Materials Mutant | -9/Materials Resources | -11 -10 -9 ----------- Run | Yrd Mat Mat Matter Collected 816 | 280 461 75 Remotely . | . . . Salvage Created 1527 | 164 1213 150 Parts 94 | 11 67 16 Haulers Intercepted 2 | . 2 . Recyclers Shooed 2 | . 2 . Parts Field Recycled . | . . . Retrieved Matter . | . . . Parts Self-Destructed . | . . . Prevented . | . . . Kills | -11 -10 -9 ------- Run | Yrd Mat Mat Combat Hostiles Destroyed 24 | . 17 7 Guns 17 | . 17 . Cannons 7 | . . 7 Classes Destroyed 8 | 2 6 . Worker 4 | . 3 1 Builder 4 | . 3 1 Tunneler 6 | 5 1 . Hauler 2 | . 2 . Recycler 6 | 1 5 . Watcher 3 | . 3 . Swarmer 13 | . 6 7 Grunt 11 | . 11 . Best Kill Streak 6 | 6 4 5 Combat Bots Only 4 | . 3 4 Max Kills in Single Turn 2 | 1 2 1 Gunslinging . | . . . Exploded . | . . . Melee . | . . . Uniques/NPCs Destroyed . | . . . Combat | -11 -10 -9 -------- Run | Yrd Mat Mat Hostile Shots Fired 157 | . 87 70 Missed 39 | . 21 18 Hits 118 | . 66 52 Melee 3 | . . 3 Projectile 115 | . 66 49 Critical Strikes 1 | . . 1 Damage Taken 1162 | . 664 498 Core 253 | . 155 98 Absorbed by Shields . | . . . Regen/Repaired (Parts) 27 | . 27 . Core Remaining (%) 69 | 100 38 . Volleys Fired 152 | 12 99 41 Largest 2 | 2 2 2 Hottest 120 | 80 120 120 Shots Fired 271 | 24 170 77 Gun 202 | 24 164 14 Cannon 63 | . 3 60 Launcher . | . . . Special 6 | . 3 3 Kinetic . | . . . Thermal 209 | 24 122 63 Explosive . | . . . Electromagnetic 62 | . 48 14 Robot Hit Streak 7 | 3 7 6 Robot Miss Streak 5 | 2 5 5 Penetration Max . | . . . Secondary Targets 1 | . 1 . Max Gunslinging Chain 1 | . 1 . Shots Hit Robots 147 | 13 102 32 Core Hits 74 | 7 56 11 Critical Kills . | . . . Critical Parts Destroyed . | . . . Critical Strikes . | . . . Melee Attacks . | . . . Impact . | . . . Slashing . | . . . Piercing . | . . . Sneak Attacks . | . . . Combat Hostiles . | . . . Follow-up Attacks . | . . . Damage Inflicted 2043 | 143 1334 566 Guns 1434 | 143 1198 93 Cannons 509 | . 36 473 Explosions 100 | . 100 . Melee . | . . . Ramming . | . . . Kinetic . | . . . Thermal 1542 | 143 926 473 Explosive . | . . . Electromagnetic 501 | . 408 93 Impact . | . . . Slashing . | . . . Piercing . | . . . Highest Corruption 3 | . 3 . Average Corruption 2 | . 2 . Corruption Purged . | . . . Corruption Blocked . | . . . Effects 17 | . 17 . Message Errors 3 | . 3 . Matter Fused 4 | . 4 . Heat Flow Errors 2 | . 2 . Energy Discharges 3 | . 3 . Data Loss (minor) 2 | . 2 . Data Loss (major) 1 | . 1 . Alerts 2 | . 2 . Overload Shots . | . . . Overflow Damage . | . . . Projectiles . | . . . Explosions . | . . . Melee . | . . . Knockbacks . | . . . Impact . | . . . Kinetic . | . . . Secondary . | . . . Self-Inflicted Damage . | . . . Shots . | . . . Rammed . | . . . Targets Rammed . | . . . Kicked . | . . . Crushed . | . . . Highest Temperature 473 | 74 342 473 Average Temperature 102 | 34 65 162 Received Heat Transfer 231 | . 213 18 Effects 10 | . . 10 Energy Bleed 3 | . . 3 Interference 4 | . . 4 Damage (major) 3 | . . 3 Siege Activations . | . . . Martial Activations . | . . . Shielding Activations . | . . . Robots Disrupted . | . . . Combat Hostiles . | . . . Robots Corrupted . | . . . Combat Hostiles . | . . . Parts Fried 1 | . 1 . Impact Corruptions . | . . . Robots Melted . | . . . Combat Hostiles . | . . . Parts Melted 6 | 4 . 2 Heat Transferred 3298 | 325 1974 999 Parts Sabotaged . | . . . Parts Stolen . | . . . Parts Stripped . | . . . Power Chain Reactions 2 | . 2 . Alert | -11 -10 -9 ------- Run | Yrd Mat Mat Maximum Alert Level . | . . . Low Security (%) 100 | 100 100 100 Level 1 . | . . . Level 2 . | . . . Level 3 . | . . . Level 4 . | . . . Level 5 . | . . . High Security . | . . . Max Security . | . . . Peak Influence 169 | 10 169 127 Initial 24 | . . 24 Average 53 | 1 55 62 Influence Increases 892 | 30 637 225 Destroy 0b10 Robot/C 480 | . 340 140 Destroy 0b10 Robot/NC 125 | 30 85 10 Destroy Leader 90 | . 70 20 Successful Hack 30 | . 25 5 Disable Machine 45 | . 30 15 Destroy Structure 17 | . 12 5 Partial Spotted 15 | . 15 . Lose Combat Pursuer 90 | . 60 30 Influence Decreases 845 | 30 579 236 Entered New Map 34 | . . 34 Time Decay 620 | 30 438 152 Lost Part 60 | . 10 50 Purge Threat 131 | . 131 . Squads Dispatched 4 | . 4 . Investigation 1 | . 1 . Extermination . | . . . Reinforcement 3 | . 3 . Assault . | . . . Garrison . | . . . Intercept . | . . . Searches Triggered . | . . . Construction Impeded . | . . . Haulers Reinforced . | . . . Active Scanning Responses . | . . . Cargo Convoy Interrupts . | . . . Stealth | -11 -10 -9 --------- Run | Yrd Mat Mat Distress Signals 3 | . 2 1 Communications Jammed . | . . . Distress Signals . | . . . Times Spotted 41 | . 26 15 Peak Tracking Total 5 | . 3 5 Tactical Retreats 4 | . 3 1 Traps | -11 -10 -9 ------- Run | Yrd Mat Mat Traps Triggered 3 | . 3 . Indirectly . | . . . Trap Hack Attempts . | . . . Triggered . | . . . Disarmed . | . . . Reprogrammed . | . . . Reused . | . . . Traps Extracted . | . . . Installed . | . . . Triggered . | . . . Machines | -11 -10 -9 ---------- Run | Yrd Mat Mat Machines Disabled 3 | . 2 1 Max in Single Turn 1 | . 1 1 Machines Repaired . | . . . Machines Dismantled . | . . . Machines Sabotaged . | . . . Overloaded Fab Kills . | . . . Hacking | -11 -10 -9 --------- Run | Yrd Mat Mat Machines Accessed 11 | . 8 3 Terminals 9 | . 6 3 Fabricators . | . . . Repair Stations 1 | . 1 . Recycling Units 1 | . 1 . Scanalyzers . | . . . Garrison Access . | . . . Total Hacks 40 | . 30 10 Successful 16 | . 11 5 Failed 23 | . 18 5 Catastrophic 2 | . 1 1 Database Lockouts 1 | . 1 . Manual 37 | . 28 9 Terminals 34 | . 24 10 Fabricators . | . . . Repair Stations 5 | . 5 . Recycling Units 1 | . 1 . Scanalyzers . | . . . Garrison Access . | . . . Terminal Hacks 5 | . 3 2 Part Schematic 1 | . 1 . Terminal Index 1 | . . 1 Unreport Threat 1 | . 1 . Hauler Manifests 1 | . 1 . Zone Layout 1 | . . 1 Fabricator Hacks . | . . . Repair Station Hacks 3 | . 3 . Scan Component 2 | . 2 . Repair 1 | . 1 . Recycling Unit Hacks . | . . . Scanalyzer . | . . . Garrison Access Hacks . | . . . Unauthorized Hacks 8 | . 5 3 Terminals 7 | . 4 3 Botnet 5 | . 3 2 Operators 2 | . 1 1 Fabricators . | . . . Repair Stations . | . . . Recycling Units 1 | . 1 . Mask 1 | . 1 . Scanalyzers . | . . . Garrison Access . | . . . Data Cores Recovered . | . . . Used . | . . . Hacking Detections 10 | . 7 3 Full Trace Events . | . . . Feedback Events . | . . . Feedback Blocked . | . . . Robot Schematics Acquired . | . . . Robots Built . | . . . Authchips . | . . . Time . | . . . Total Robot Build Rating . | . . . Part Schematics Acquired 1 | . 1 . Parts Built . | . . . Authchips . | . . . Time . | . . . Total Part Build Rating . | . . . Parts Repaired 1 | . 1 . Time 26 | . 26 . Parts Recycled . | . . . Recycled Matter . | . . . Retrieved Matter . | . . . Retrieved Components . | . . . Parts Scanalyzed . | . . . Part Schematics Acquired . | . . . Parts Damaged . | . . . Bothacking | -11 -10 -9 ------------ Run | Yrd Mat Mat Used RIF Installer . | . . . Robots Hacked . | . . . Non-combat . | . . . Combat . | . . . Robot Hacks Applied . | . . . Relay Couplers Released . | . . . Fabnet Peak Effective % . | . . . Robots Rewired . | . . . Allies Hacked . | . . . Hacks Repelled . | . . . Allies | -11 -10 -9 -------- Run | Yrd Mat Mat Total Allies . | . . . Largest Group . | . . . Highest-Rated Group . | . . . Highest-Rated Ally . | . . . Total Orders . | . . . Ally Attacks . | . . . Total Damage . | . . . Kills . | . . . Allies Corrupted . | . . . Allies Melted . | . . . Intel | -11 -10 -9 ------- Run | Yrd Mat Mat Active Infowar (turns) 1529 | 56 1103 370 Structural 405 | . 49 356 Seismic 1478 | 56 1052 370 T.N.C. 2 | . 2 . Robot Analysis Total . | . . . Derelict Logs Recovered . | . . . Drone Launches . | . . . Drone Recoveries . | . . . Exploration | -11 -10 -9 ------------- Run | Yrd Mat Mat Turns Passed 2217 | 124 1723 370 Spaces Moved 1478 | 75 1198 205 Core 1 | 1 . . Treads . | . . . Legs . | . . . Wheels 1477 | 74 1198 205 Hover . | . . . Flight . | . . . Fastest Speed 50 | 50 80 95 Average Speed 91 | 88 91 95 Slowest Speed 125 | 90 105 125 Overloaded Moves . | . . . Propulsion Burnouts . | . . . Robots Hopped . | . . . Potential Cave-ins . | . . . Cave-ins Triggered . | . . . Exploration Rate (%) 40 | 4 99 17 Regions Visited 2 Branch Regions . Pre-discovered Areas . | . . . Known Exits Taken . | . . . Unknown Exits Taken 2 | 1 1 . Scrap Searched . | . . . Spaces Dug 6 | . 3 3 Terrain Destroyed 14 | . 11 3 Melee . | . . . Projectile 6 | . 3 3 AOE 8 | . 8 . Terrain Rammed . | . . . Walls Destroyed . | . . . Machines Disabled . | . . . Actions | -11 -10 -9 --------- Run | Yrd Mat Mat Total 2051 | 105 1651 295 Wait 296 | . 262 34 Move 1476 | 74 1197 205 Hop . | . . . Pick Up 30 | 9 20 1 Fast Attach 13 | 7 5 1 Attach 9 | . 2 7 Detach . | . . . Swap 40 | 1 36 3 Drop 35 | 2 30 3 Fire 152 | 12 99 41 Melee . | . . . Ram . | . . . Kick . | . . . Crush . | . . . Escape Stasis . | . . . Rewire . | . . . Trap . | . . . Miscellaneous . | . . . Route ------- -11/Scrapyard -10/Materials (discovered 6 exits: *Mat x3 / [*Min x2] / [*Sub]) -9/Materials History --------- Turn | Location | Event 12 | -11/Scrapyard | Discovered new exit (range 15) 125 | -11/Scrapyard | Entered Materials 326 | -10/Materials | Central database locked down 383 | -10/Materials | Discovered new exit (range 10) 410 | -10/Materials | Discovered new exit (range 3) 526 | -10/Materials | Discovered new exit (range 4) 720 | -10/Materials | Discovered new exit (range 9) 991 | -10/Materials | Discovered new exit (range 16) 1013 | -10/Materials | Build established: Mutant 1085 | -10/Materials | Discovered new exit (range 12) 1558 | -10/Materials | Core integrity fell below 50% 1783 | -10/Materials | Repaired Wheel 1848 | -10/Materials | Entered another Materials area 1848 | -9/Materials | Evolved 2 slots: Utility x2 2218 | -9/Materials | Self-destructed Last Messages --------------- 02108_ K-01 Serf collects debris. 02109_ Overheating: System interference. 02109_ Structural Scanner temporarily disabled. 02109_ Heat Sink temporarily disabled. 02110_ R-06 Scavenger collects Flight Unit. 02111_ K-01 Serf collects debris. 02114_ Acquired Wheel. 02115_ Acquired 20 matter. 02117_ K-01 Serf cleans the Neutrino Reactor. 02119_ Dropped Heat Sink. 02120_ Acquired 10 matter. 02120_ K-01 Serf cleans the Neutrino Reactor. 02147_ K-01 Serf cleans the Atomic Centrifuge. 02163_ Connecting with Terminal... 02165_ K-01 Serf cleans the Atomic Centrifuge. 02175_ Dropped Beam Cannon. 02212_ Hvy. EM Pulse Gun destroyed. 02217_ Wheel destroyed. Map ----- +----------------------------------------------------+ | ?????????????????? #####+###+#### # # | | ?????????????????? # #### # # | | ?????????????????? # #### ###### | | ?????????????????? # """ """ #### ###### | | ?????????????????? # """ """ #### ###### | | ??????????????????+# """ """ #### ###### | | ?????????????????? # %* +% # # | | ?????????????????? # ! ### # ""# | | ?????????????????? # %! ### #= T"# | | ???????????##############+###### # ""# | | ??????????? ############ *T + # | | ??????????? # #[ ## # | | ??????????? # """ """ # ## # | | ??????????? #[ """ """ + """ """ ## # | | ??????????? # """ """ # """ """ ## # | | ???????????## # """ """ ####### | | ???????????######+###### ####### | | ???????????###### # ]##????? | | ???????????????## """ # ]##????? | | ???????????????## """ # t############????? | | ???????????????## """ + ############????? | | ???????????????## # ##??????????????? | | ???????????????## # ##??????????????? | | ???????????????######### ##??????????????? | | ??????????????? #### ##??????????????? | | ??????????????????????## @ ##??????????????? | | ??????????????????????##gl ##??????????????? | | ??????????????????????## ##??????????????? | | ??????????????????????## # ??????????????? | | ??????????????????????## # ??????????????? | | ??????????????????????## # ??????????????? | | ?????????????????????? r # ??????????????? | | ??????????????????????? + ??????????????? | | ????????????????????? g # ??????????????? | | ?????????????????????### # ??????????????? | | ?????????????????????### # ??????????????? | | ??????????????????????## # ??????????????? | | ??????????????????????## ##??????????????? | | ?????????????????????? ??????????????? | | ???????????????????????? ????????????????? | | ???????????????????????? ????????????????? | | ???????????????????????????????????????????? | | ???????????????????????????????????????????? | | ???????????????????????????????????????????? | | ???????????????????????????????????????????? | | ???????????????????????????????????????????? | | ???????????????????????????????????????????? | | ???????????????????????????????????????????? | | ???????????????????????????????????????????? | | ???????????????????????????????????????????? | +----------------------------------------------------+ Best States ------------- Heat Dissipation 38 Energy Generation 14 Energy Capacity 500 Matter Stores 300 Matter Capacity 300 Sight Range 16 Terrain Scan Density 10 Evasion (%) 44 Item Schematics ----------------- Huge Storage Unit | -10/Materials | Hacked Robot Schematics ------------------ None Fabricated ------------ Nothing Repaired ---------- Wheel | 32% | -10/Materials Alien Tech Used ----------------- None Achievements -------------- None Challenges ------------ None Game ------ Seed SalvagingCombatNukerbomber Manual? 0 Play Time 00:32:01 Cumulative 140.9 hours Start 2025.06.11 @ 13:06:11 End 2025.06.11 @ 13:33:12 Sessions 1 Manual Loads 0 Difficulty Rogue Special Mode None Game No. 97 Rogue 97 Adventurer 0 Explorer 0 Win Type - Total 1 Types 1/0/0/0/0/0/0/0/0/0 Lore% 47 Gallery% 50 Achievement% 45 Wizard Run 0 Options --------- Layout 1 ASCII 0 Keyboard 0 Movement Mouse Keybinds 0 Fullscreen 1 Font 24/Smallcaps Map View 50x35 Zoom Use 0% Tactical HUD 1 Map Filters NONE Filters NONE Steam 1 RUN: 9849a493-7645-433c-b31f-7341c86f9576